{"text_format":"1","workbook":"xlsx","n_sheets":6,"sheets":["Endkampf Mannschaften ","Endstand Mannschaften","Finale","Tiefschuss","Punkteverhältnis","Urkunden einzel"],"not_rendered":{"charts":0,"images":2,"macros":1,"external_links":0,"defined_names":1,"comments":0,"pivot_tables":0},"unopened":[],"bounds":{"document_bytes":16777216,"sheet_cells":100000,"rows_first":2000,"rows_last":500,"rows_between":2000,"halvings":0,"cell_chars":16384,"cell_head_chars":4096},"cells_cut":0,"cells_raw":0,"read":"whole","date_system":"1900"}

{"sheet":"Endkampf Mannschaften ","index":0,"n_rows":75,"n_cols":17,"rows_kept":75,"cut":false,"hidden":false,"merged":[[50,9,50,10],[20,9,20,10],[6,15,7,15],[6,16,7,16],[15,15,16,15],[0,0,0,14],[63,15,64,15],[63,16,64,16],[68,9,68,10],[72,15,73,15],[72,16,73,16],[45,15,46,15],[45,16,46,16],[54,15,55,15],[54,16,55,16],[59,9,59,10],[15,16,16,16],[24,15,25,15],[24,16,25,16],[33,15,34,15],[33,16,34,16]]}
["Mannschaftsergebnisse Endkampf Bezirksdamenschießen 2018"]
[]
["Schützengau Kitzingen"]
["Namen","Gau","LP","1. Serie","2. Serie","3. Serie","4. Serie","Ergebnis","Differenz","Tiefschuss","Punkte"]
["Krämer Bianca",{"$f":"IF(A5>1,$A$3,\"\")","v":"Schützengau Kitzingen"},"-",94,88,89,87,{"$f":"SUM(D5:G5)+M5","v":358},{"$f":"IF(A5>1,400-H5,0)","v":42},55.9,{"$f":"IF(D5>1,SUM(I5:J5),0)","v":97.9},{"$f":"CODE(C5)","v":45},{"$f":"IF(L5=120,10,0)","v":0},{"$f":"IF(A5>1,1,\"\")","v":1}]
["Kohr Anette",{"$f":"IF(A6>1,$A$3,\"\")","v":"Schützengau Kitzingen"},"-",83,89,87,82,{"$f":"SUM(D6:G6)+M6","v":341},{"$f":"IF(A6>1,400-H6,0)","v":59},63.1,{"$f":"IF(D6>1,SUM(I6:J6),0)","v":122.1},{"$f":"CODE(C6)","v":45},{"$f":"IF(L6=120,10,0)","v":0},{"$f":"IF(A6>1,1,\"\")","v":1}]
["Schäffner Natalia","Schützengau Kitzingen","-",91,94,94,97,376,24,6.3,30.3,45,0,1,{"$f":"IF(O8=4,MAXA(K5:K8),0)","v":0},"Ergebnisse Vorkampf","Gesamt"]
[null,"","-",null,null,null,null,0,{"$f":"IF(A8>1,400-H8,0)","v":0},null,0,45,0,"",{"$f":"COUNT(N5:N8)","v":3}]
[null,null," ",null,null,null,null,{"$f":"SUM(D9:G9)","v":0},null,"Gesamt:",{"$f":"K5+K6+K7+K8-O7","v":250.3},null,null,null,null,513.6,{"$f":"P9+K9","v":763.90000000000009}]
[]
[]
["Schützengau Main-Spessart"]
["Namen","Gau","LG/LP","1. Serie","2. Serie","3. Serie","4. Serie","Ergebnis","Differenz","Tiefschuss","Punkte"]
["Bürki Anja",{"$f":"IF(A14>1,$A$12,\"\")","v":"Schützengau Main-Spessart"},"-",96,94,97,94,{"$f":"SUM(D14:G14)+M14","v":381},{"$f":"IF(A14>1,400-H14,0)","v":19},56.5,{"$f":"IF(D14>1,SUM(I14:J14),0)","v":75.5},{"$f":"CODE(C14)","v":45},{"$f":"IF(L14=120,10,0)","v":0},{"$f":"IF(A14>1,1,\"\")","v":1}]
["Aulbach Jasmin",{"$f":"IF(A15>1,$A$12,\"\")","v":"Schützengau Main-Spessart"},"-",93,96,94,92,{"$f":"SUM(D15:G15)+M15","v":375},{"$f":"IF(A15>1,400-H15,0)","v":25},29.1,{"$f":"IF(D15>1,SUM(I15:J15),0)","v":54.1},{"$f":"CODE(C15)","v":45},{"$f":"IF(L15=120,10,0)","v":0},{"$f":"IF(A15>1,1,\"\")","v":1}]
["Wagner Marion",{"$f":"IF(A16>1,$A$12,\"\")","v":"Schützengau Main-Spessart"},"-",96,99,96,98,389,11,13,24,45,0,1,{"$f":"IF(O17=4,MAXA(K14:K17),0)","v":0},"Ergebnisse Vorkampf","Gesamt"]
[null,{"$f":"IF(A17>1,$A$12,\"\")","v":""},"-",null,null,null,null,0,{"$f":"IF(A17>1,400-H17,0)","v":0},null,0,45,0,"",{"$f":"COUNT(N14:N17)","v":3}]
[null,{"$f":"IF(A18>1,$A$12,\"\")","v":""},null," ",null,null,null,null,null,"Gesamt:",{"$f":"K14+K15+K16+K17-O16","v":153.6},null,null,null,null,579.79999999999995,{"$f":"P18+K18","v":733.4}]
[]
[]
["Schützengau Maintal"]
["Namen","Gau",null,"1. Serie","2. Serie","3. Serie","4. Serie","Ergebnis","Differenz","Tiefschuss","Punkte"]
["Haas Steffi",{"$f":"IF(A23>1,$A$21,\"\")","v":"Schützengau Maintal"},"-",97,93,94,91,{"$f":"SUM(D23:G23)+M23","v":375},{"$f":"IF(A23>1,400-H23,0)","v":25},29.2,{"$f":"IF(D23>1,SUM(I23:J23),0)","v":54.2},{"$f":"CODE(C23)","v":45},{"$f":"IF(L23=120,10,0)","v":0},{"$f":"IF(A23>1,1,\"\")","v":1}]
["Becker Michaela",{"$f":"IF(A24>1,$A$21,\"\")","v":"Schützengau Maintal"},"x",91,88,91,91,{"$f":"SUM(D24:G24)+M24","v":371},{"$f":"IF(A24>1,400-H24,0)","v":29},23.6,{"$f":"IF(D24>1,SUM(I24:J24),0)","v":52.6},{"$f":"CODE(C24)","v":120},{"$f":"IF(L24=120,10,0)","v":10},{"$f":"IF(A24>1,1,\"\")","v":1}]
["Reuter Nadja","Schützengau Maintal","-",95,97,96,96,384,16,63,79,45,0,1,{"$f":"IF(O26=4,MAXA(K23:K26),0)","v":0},"Ergebnisse Vorkampf","Gesamt"]
[null,"","-",null,null,null,null,0,{"$f":"IF(A26>1,400-H26,0)","v":0},null,0,45,0,"",{"$f":"COUNT(N23:N26)","v":3}]
[null,"",null,null,null,null,null,{"$f":"SUM(D27:G27)","v":0},null,"Gesamt:",{"$f":"K23+K24+K25+K26-O25","v":185.8},null,null,null,null,876.9,{"$f":"P27+K27","v":1062.7}]
[null,null,null,null,null,null,null,{"$f":"SUM(D28:G28)","v":0}]
[]
["Schützengau Mittelmain"]
["Namen","Gau","LG/LP","1. Serie","2. Serie","3. Serie","4. Serie","Ergebnis","Differenz","Tiefschuss","Punkte"]
["nicht angetreten",{"$f":"IF(A32>1,$A$30,\"\")","v":"Schützengau Mittelmain"},"-",2,null,null,null,{"$f":"SUM(D32:G32)+M32","v":2},{"$f":"IF(A32>1,400-H32,0)","v":398},993,{"$f":"IF(D32>1,SUM(I32:J32),0)","v":1391},{"$f":"CODE(C32)","v":45},{"$f":"IF(L32=120,10,0)","v":0},{"$f":"IF(A32>1,1,\"\")","v":1}]
[null,{"$f":"IF(A33>1,$A$30,\"\")","v":""},"-",null,null,null,null,{"$f":"SUM(D33:G33)+M33","v":0},{"$f":"IF(A33>1,400-H33,0)","v":0},null,{"$f":"IF(D33>1,SUM(I33:J33),0)","v":0},{"$f":"CODE(C33)","v":45},{"$f":"IF(L33=120,10,0)","v":0},{"$f":"IF(A33>1,1,\"\")","v":""}]
[null,"","-",null,null,null,null,0,0,null,0,45,0,"",{"$f":"IF(O35=4,MAXA(K32:K35),0)","v":0},"Ergebnisse Vorkampf","Gesamt"]
[null,"","-",null,null,null,null,0,{"$f":"IF(A35>1,400-H35,0)","v":0},null,0,45,0,"",{"$f":"COUNT(N32:N35)","v":1}]
[null,"",null," ",null,null,null,null,null,"Gesamt:",{"$f":"K32+K33+K34+K35-O34","v":1391},null,null,null,null,609,{"$f":"P36+K36","v":2000}]
[]
[]
[]
[]
[]
["Schützengau Rhön-Grabfeld"]
["Namen","Gau","LG/LP","1. Serie","2. Serie","3. Serie","4. Serie","Ergebnis","Differenz","Tiefschuss","Punkte"]
["Reder Luisa",{"$f":"IF(A44>1,$A$42,\"\")","v":"Schützengau Rhön-Grabfeld"},"-",87,94,80,84,{"$f":"SUM(D44:G44)+M44","v":345},{"$f":"IF(A44>1,400-H44,0)","v":55},98.6,{"$f":"IF(D44>1,SUM(I44:J44),0)","v":153.6},{"$f":"CODE(C44)","v":45},{"$f":"IF(L44=120,10,0)","v":0},{"$f":"IF(A44>1,1,\"\")","v":1}]
["Stroh Linda",{"$f":"IF(A45>1,$A$42,\"\")","v":"Schützengau Rhön-Grabfeld"},"-",90,90,95,91,{"$f":"SUM(D45:G45)+M45","v":366},{"$f":"IF(A45>1,400-H45,0)","v":34},58.6,{"$f":"IF(D45>1,SUM(I45:J45),0)","v":92.6},{"$f":"CODE(C45)","v":45},{"$f":"IF(L45=120,10,0)","v":0},{"$f":"IF(A45>1,1,\"\")","v":1}]
["Schmitt Heidi","Schützengau Rhön-Grabfeld","-",92,91,86,85,354,46,67.2,113.2,45,0,1,{"$f":"IF(O47=4,MAXA(K44:K47),0)","v":0},"Ergebnisse Vorkampf","Gesamt"]
[null,"","-",null,null,null,null,0,{"$f":"IF(A47>1,400-H47,0)","v":0},null,0,45,0,"",{"$f":"COUNT(N44:N47)","v":3}]
[null,null,null,null,null,null,null,{"$f":"SUM(D48:G48)","v":0},null,"Gesamt:",{"$f":"K44+K45+K46+K47-O46","v":359.4},null,null,null,null,377.2,{"$f":"P48+K48","v":736.59999999999991}]
[]
[]
["Schützengau Rhön-Saale"]
["Namen","Gau","LG/LP","1. Serie","2. Serie","3. Serie","4. Serie","Ergebnis","Differenz","Tiefschuss","Punkte"]
["Beck Sonja",{"$f":"IF(A53>1,$A$51,\"\")","v":"Schützengau Rhön-Saale"},"-",87,92,83,84,{"$f":"SUM(D53:G53)+M53","v":346},{"$f":"IF(A53>1,400-H53,0)","v":54},27.8,{"$f":"IF(D53>1,SUM(I53:J53),0)","v":81.8},{"$f":"CODE(C53)","v":45},{"$f":"IF(L53=120,10,0)","v":0},{"$f":"IF(A53>1,1,\"\")","v":1}]
["Röder Sonja",{"$f":"IF(A54>1,$A$51,\"\")","v":"Schützengau Rhön-Saale"},"-",91,91,93,83,{"$f":"SUM(D54:G54)+M54","v":358},{"$f":"IF(A54>1,400-H54,0)","v":42},99.7,{"$f":"IF(D54>1,SUM(I54:J54),0)","v":141.69999999999999},{"$f":"CODE(C54)","v":45},{"$f":"IF(L54=120,10,0)","v":0},{"$f":"IF(A54>1,1,\"\")","v":1}]
["Schlembach Maria","Schützengau Rhön-Saale","x",92,92,86,91,371,29,44,73,120,10,1,{"$f":"IF(O56=4,MAXA(K53:K56),0)","v":190.6},"Ergebnisse Vorkampf","Gesamt"]
["Voll Renate","Schützengau Rhön-Saale","x",77,86,81,82,336,{"$f":"IF(A56>1,400-H56,0)","v":64},126.6,190.6,120,10,1,{"$f":"COUNT(N53:N56)","v":4}]
[null,null,null,null,null,null,null,null,null,"Gesamt:",{"$f":"K53+K54+K55+K56-O55","v":296.5},null,null,null,null,523,{"$f":"P57+K57","v":819.5}]
[]
[]
["Schützengau Schweinfurt"]
["Namen","Gau","LG/LP","1. Serie","2. Serie","3. Serie","4. Serie","Ergebnis","Differenz","Tiefschuss","Punkte"]
["Baumeister Ilse",{"$f":"IF(A62>1,$A$60,\"\")","v":"Schützengau Schweinfurt"},"-",93,87,88,88,{"$f":"SUM(D62:G62)+M62","v":356},{"$f":"IF(A62>1,400-H62,0)","v":44},23.6,{"$f":"IF(D62>1,SUM(I62:J62),0)","v":67.599999999999994},{"$f":"CODE(C62)","v":45},{"$f":"IF(L62=120,10,0)","v":0},{"$f":"IF(A62>1,1,\"\")","v":1}]
["Rinder Sandra",{"$f":"IF(A63>1,$A$60,\"\")","v":"Schützengau Schweinfurt"},"-",93,96,97,94,{"$f":"SUM(D63:G63)+M63","v":380},{"$f":"IF(A63>1,400-H63,0)","v":20},29,{"$f":"IF(D63>1,SUM(I63:J63),0)","v":49},{"$f":"CODE(C63)","v":45},{"$f":"IF(L63=120,10,0)","v":0},{"$f":"IF(A63>1,1,\"\")","v":1}]
["Jasmin Schinzel","Schützengau Schweinfurt","-",89,93,89,91,362,38,104,142,45,0,1,{"$f":"IF(O65=4,MAXA(K62:K65),0)","v":0},"Ergebnisse Vorkampf","Gesamt"]
[null,"","-",null,null,null,null,0,{"$f":"IF(A65>1,400-H65,0)","v":0},null,0,45,0,"",{"$f":"COUNT(N62:N65)","v":3}]
[null,null,null,null,null,null,null,{"$f":"SUM(D66:G66)","v":0},null,"Gesamt:",{"$f":"K62+K63+K64+K65-O64","v":258.60000000000002},null,null,null,null,519,{"$f":"P66+K66","v":777.6}]
[]
[]
["Schützengau Würzburg"]
["Namen","Gau","LG/LP","1. Serie","2. Serie","3. Serie","4. Serie","Ergebnis","Differenz","Tiefschuss","Punkte"]
["Peter Anna-Lena",{"$f":"IF(A71>1,$A$69,\"\")","v":"Schützengau Würzburg"},"-",89,85,87,85,{"$f":"SUM(D71:G71)+M71","v":346},{"$f":"IF(A71>1,400-H71,0)","v":54},84.4,{"$f":"IF(D71>1,SUM(I71:J71),0)","v":138.4},{"$f":"CODE(C71)","v":45},{"$f":"IF(L71=120,10,0)","v":0},{"$f":"IF(A71>1,1,\"\")","v":1}]
["Martin Violetta",{"$f":"IF(A72>1,$A$69,\"\")","v":"Schützengau Würzburg"},"-",97,95,97,97,{"$f":"SUM(D72:G72)+M72","v":386},{"$f":"IF(A72>1,400-H72,0)","v":14},30.8,{"$f":"IF(D72>1,SUM(I72:J72),0)","v":44.8},{"$f":"CODE(C72)","v":45},{"$f":"IF(L72=120,10,0)","v":0},{"$f":"IF(A72>1,1,\"\")","v":1}]
["Ebert Monika","Schützengau Würzburg","-",87,88,83,90,348,52,70,122,45,0,1,{"$f":"IF(O74=4,MAXA(K71:K74),0)","v":0},"Ergebnisse Vorkampf","Gesamt"]
[null,"","-",null,null,null,null,0,{"$f":"IF(A74>1,400-H74,0)","v":0},null,0,45,0,"",{"$f":"COUNT(N71:N74)","v":3}]
[null,null,null,null,null,null,null,null,null,"Gesamt:",{"$f":"K71+K72+K73+K74-O73","v":305.2},null,null,null,null,404.5,{"$f":"P75+K75","v":709.7}]

{"sheet":"Endstand Mannschaften","index":1,"n_rows":9,"n_cols":7,"rows_kept":9,"cut":false,"hidden":false,"merged":[]}
["Platz","Gau","1. Schützin","2. Schützin","3. Schützin","4. Schützin","Punkte"]
["1.",{"$f":"'Endkampf Mannschaften '!A69","v":"Schützengau Würzburg"},{"$f":"'Endkampf Mannschaften '!A71","v":"Peter Anna-Lena"},{"$f":"'Endkampf Mannschaften '!A72","v":"Martin Violetta"},{"$f":"'Endkampf Mannschaften '!A73","v":"Ebert Monika"},{"$f":"'Endkampf Mannschaften '!A74","v":0},{"$f":"'Endkampf Mannschaften '!Q75","v":709.7}]
["2.",{"$f":"'Endkampf Mannschaften '!A12","v":"Schützengau Main-Spessart"},{"$f":"'Endkampf Mannschaften '!A14","v":"Bürki Anja"},{"$f":"'Endkampf Mannschaften '!A15","v":"Aulbach Jasmin"},{"$f":"'Endkampf Mannschaften '!A16","v":"Wagner Marion"},{"$f":"'Endkampf Mannschaften '!A17","v":0},{"$f":"'Endkampf Mannschaften '!Q18","v":733.4}]
["3.",{"$f":"'Endkampf Mannschaften '!A42","v":"Schützengau Rhön-Grabfeld"},{"$f":"'Endkampf Mannschaften '!A44","v":"Reder Luisa"},{"$f":"'Endkampf Mannschaften '!A45","v":"Stroh Linda"},{"$f":"'Endkampf Mannschaften '!A46","v":"Schmitt Heidi"},{"$f":"'Endkampf Mannschaften '!A47","v":0},{"$f":"'Endkampf Mannschaften '!Q48","v":736.59999999999991}]
["4.",{"$f":"'Endkampf Mannschaften '!A3","v":"Schützengau Kitzingen"},{"$f":"'Endkampf Mannschaften '!A5","v":"Krämer Bianca"},{"$f":"'Endkampf Mannschaften '!A6","v":"Kohr Anette"},{"$f":"'Endkampf Mannschaften '!A7","v":"Schäffner Natalia"},{"$f":"'Endkampf Mannschaften '!A8","v":0},{"$f":"'Endkampf Mannschaften '!Q9","v":763.90000000000009}]
["5.",{"$f":"'Endkampf Mannschaften '!A60","v":"Schützengau Schweinfurt"},{"$f":"'Endkampf Mannschaften '!A62","v":"Baumeister Ilse"},{"$f":"'Endkampf Mannschaften '!A63","v":"Rinder Sandra"},{"$f":"'Endkampf Mannschaften '!A64","v":"Jasmin Schinzel"},{"$f":"'Endkampf Mannschaften '!A65","v":0},{"$f":"'Endkampf Mannschaften '!Q66","v":777.6}]
["6.",{"$f":"'Endkampf Mannschaften '!A51","v":"Schützengau Rhön-Saale"},{"$f":"'Endkampf Mannschaften '!A53","v":"Beck Sonja"},{"$f":"'Endkampf Mannschaften '!A54","v":"Röder Sonja"},{"$f":"'Endkampf Mannschaften '!A55","v":"Schlembach Maria"},{"$f":"'Endkampf Mannschaften '!A56","v":"Voll Renate"},{"$f":"'Endkampf Mannschaften '!Q57","v":819.5}]
["7.",{"$f":"'Endkampf Mannschaften '!A21","v":"Schützengau Maintal"},{"$f":"'Endkampf Mannschaften '!A23","v":"Haas Steffi"},{"$f":"'Endkampf Mannschaften '!A24","v":"Becker Michaela"},{"$f":"'Endkampf Mannschaften '!A25","v":"Reuter Nadja"},{"$f":"'Endkampf Mannschaften '!A26","v":0},{"$f":"'Endkampf Mannschaften '!Q27","v":1062.7}]
["8."]

{"sheet":"Finale","index":2,"n_rows":13,"n_cols":16,"rows_kept":13,"cut":false,"hidden":false,"merged":[]}
[null,"Bezirksdamenschießen 2018",null,null,null,null,null,null,null,"Finalschießen - Freistehend"]
[]
[null,"Platz","Name","Gau","Ergebnis Vorkampf","1. Schuss","2. Schuss","3. Schuss","4. Schuss","5. Schuss","6. Schuss","7. Schuss","8. Schuss","9. Schuss","10. Schuss","Gesamt"]
[null,"1.",{"$f":"Punkteverhältnis!B5","v":"Schäffner Natalia"},{"$f":"Punkteverhältnis!C5","v":"Schützengau Kitzingen"},{"$f":"Punkteverhältnis!K5","v":30.3},10.1,8.5,10.8,10.4,10.7,9.6,10.4,10.3,9.8000000000000007,10.1,{"$f":"SUM(F4:O4)","v":100.69999999999999}]
[null,"2.",{"$f":"Punkteverhältnis!B9","v":"Aulbach Jasmin"},{"$f":"Punkteverhältnis!C9","v":"Schützengau Main-Spessart"},{"$f":"Punkteverhältnis!K9","v":54.1},10,10.1,9.1,10.4,9.8000000000000007,10.3,9.5,9.8000000000000007,10.5,10.6,100.1]
[null,"3.",{"$f":"Punkteverhältnis!B4","v":"Wagner Marion"},{"$f":"Punkteverhältnis!C4","v":"Schützengau Main-Spessart"},{"$f":"Punkteverhältnis!K4","v":24},10.5,10.6,10.7,10.1,8.6999999999999993,9.4,10,9.4,10,10,99.4]
[null,"4.",{"$f":"Punkteverhältnis!B13","v":"Bürki Anja"},{"$f":"Punkteverhältnis!C13","v":"Schützengau Main-Spessart"},{"$f":"Punkteverhältnis!K13","v":75.5},9.1,9.6999999999999993,9.6,10.6,10.8,10.199999999999999,10.199999999999999,10.199999999999999,9.4,8.6,98.4]
[null,"5.",{"$f":"Punkteverhältnis!B6","v":"Martin Violetta"},{"$f":"Punkteverhältnis!C6","v":"Schützengau Würzburg"},{"$f":"Punkteverhältnis!K6","v":44.8},10.6,9.4,10.1,7.8,9,10.1,9.4,10.9,10.8,10.199999999999999,98.300000000000011]
[null,"6.",{"$f":"Punkteverhältnis!B8","v":"Becker Michaela"},{"$f":"Punkteverhältnis!C8","v":"Schützengau Maintal"},{"$f":"Punkteverhältnis!K8","v":52.6},10,9.3000000000000007,9.4,10.199999999999999,9.1999999999999993,9.6999999999999993,9.3000000000000007,8.3000000000000007,9.1999999999999993,10.3,94.9]
[null,"7.",{"$f":"Punkteverhältnis!B7","v":"Rinder Sandra"},{"$f":"Punkteverhältnis!C7","v":"Schützengau Schweinfurt"},{"$f":"Punkteverhältnis!K7","v":49},10,9,9.1999999999999993,10.3,9.4,9.1999999999999993,9.3000000000000007,8.8000000000000007,9,9.4,93.6]
[null,"8.",{"$f":"Punkteverhältnis!B12","v":"Schlembach Maria"},{"$f":"Punkteverhältnis!C12","v":"Schützengau Rhön-Saale"},{"$f":"Punkteverhältnis!K12","v":73},9.6,7.9,9.1,10.1,10,10.3,9.8000000000000007,7.3,6.9,9.8000000000000007,90.8]
[null,"9.",{"$f":"Punkteverhältnis!B10","v":"Haas Steffi"},{"$f":"Punkteverhältnis!C10","v":"Schützengau Maintal"},{"$f":"Punkteverhältnis!K10","v":54.2},8.5,9.1,9.6999999999999993,7.9,8.1999999999999993,8.8000000000000007,10.1,10.7,9.1999999999999993,7.7,89.9]
[null,"10.",{"$f":"Punkteverhältnis!B11","v":"Baumeister Ilse"},{"$f":"Punkteverhältnis!C11","v":"Schützengau Schweinfurt"},{"$f":"Punkteverhältnis!K11","v":67.599999999999994},5.6,10.7,8.3000000000000007,8.4,9.3000000000000007,10.1,9.1999999999999993,9.3000000000000007,7.7,5.8,84.399999999999991]

{"sheet":"Tiefschuss","index":3,"n_rows":25,"n_cols":11,"rows_kept":25,"cut":false,"hidden":false,"merged":[[0,0,0,10]]}
["Einzelergebnisse Endkampf Bezirksdamenschießen 2018"]
["Bester Tiefschuß (Freistehend)"]
["Platz","Name","Gau","1. Serie","2. Serie","3. Serie","4. Serie","Ergebnis","Differenz","Tiefschuss","Punkte"]
["1.",{"$f":"'Endkampf Mannschaften '!A7","v":"Schäffner Natalia"},{"$f":"'Endkampf Mannschaften '!B7","v":"Schützengau Kitzingen"},{"$f":"'Endkampf Mannschaften '!D7","v":91},{"$f":"'Endkampf Mannschaften '!E7","v":94},{"$f":"'Endkampf Mannschaften '!F7","v":94},{"$f":"'Endkampf Mannschaften '!G7","v":97},{"$f":"'Endkampf Mannschaften '!H7","v":376},{"$f":"'Endkampf Mannschaften '!I7","v":24},{"$f":"'Endkampf Mannschaften '!J7","v":6.3},{"$f":"'Endkampf Mannschaften '!K7","v":30.3}]
["2.",{"$f":"'Endkampf Mannschaften '!A16","v":"Wagner Marion"},{"$f":"'Endkampf Mannschaften '!B16","v":"Schützengau Main-Spessart"},{"$f":"'Endkampf Mannschaften '!D16","v":96},{"$f":"'Endkampf Mannschaften '!E16","v":99},{"$f":"'Endkampf Mannschaften '!F16","v":96},{"$f":"'Endkampf Mannschaften '!G16","v":98},{"$f":"'Endkampf Mannschaften '!H16","v":389},{"$f":"'Endkampf Mannschaften '!I16","v":11},{"$f":"'Endkampf Mannschaften '!J16","v":13},{"$f":"'Endkampf Mannschaften '!K16","v":24}]
["3.",{"$f":"'Endkampf Mannschaften '!A24","v":"Becker Michaela"},{"$f":"'Endkampf Mannschaften '!B24","v":"Schützengau Maintal"},{"$f":"'Endkampf Mannschaften '!D24","v":91},{"$f":"'Endkampf Mannschaften '!E24","v":88},{"$f":"'Endkampf Mannschaften '!F24","v":91},{"$f":"'Endkampf Mannschaften '!G24","v":91},{"$f":"'Endkampf Mannschaften '!H24","v":371},{"$f":"'Endkampf Mannschaften '!I24","v":29},{"$f":"'Endkampf Mannschaften '!J24","v":23.6},{"$f":"'Endkampf Mannschaften '!K24","v":52.6}]
["4.",{"$f":"'Endkampf Mannschaften '!A62","v":"Baumeister Ilse"},{"$f":"'Endkampf Mannschaften '!B62","v":"Schützengau Schweinfurt"},{"$f":"'Endkampf Mannschaften '!D62","v":93},{"$f":"'Endkampf Mannschaften '!E62","v":87},{"$f":"'Endkampf Mannschaften '!F62","v":88},{"$f":"'Endkampf Mannschaften '!G62","v":88},{"$f":"'Endkampf Mannschaften '!H62","v":356},{"$f":"'Endkampf Mannschaften '!I62","v":44},{"$f":"'Endkampf Mannschaften '!J62","v":23.6},{"$f":"'Endkampf Mannschaften '!K62","v":67.599999999999994}]
["5.",{"$f":"'Endkampf Mannschaften '!A53","v":"Beck Sonja"},{"$f":"'Endkampf Mannschaften '!B53","v":"Schützengau Rhön-Saale"},{"$f":"'Endkampf Mannschaften '!D53","v":87},{"$f":"'Endkampf Mannschaften '!E53","v":92},{"$f":"'Endkampf Mannschaften '!F53","v":83},{"$f":"'Endkampf Mannschaften '!G53","v":84},{"$f":"'Endkampf Mannschaften '!H53","v":346},{"$f":"'Endkampf Mannschaften '!I53","v":54},{"$f":"'Endkampf Mannschaften '!J53","v":27.8},{"$f":"'Endkampf Mannschaften '!K53","v":81.8}]
["6.",{"$f":"'Endkampf Mannschaften '!A63","v":"Rinder Sandra"},{"$f":"'Endkampf Mannschaften '!B63","v":"Schützengau Schweinfurt"},{"$f":"'Endkampf Mannschaften '!D63","v":93},{"$f":"'Endkampf Mannschaften '!E63","v":96},{"$f":"'Endkampf Mannschaften '!F63","v":97},{"$f":"'Endkampf Mannschaften '!G63","v":94},{"$f":"'Endkampf Mannschaften '!H63","v":380},{"$f":"'Endkampf Mannschaften '!I63","v":20},{"$f":"'Endkampf Mannschaften '!J63","v":29},{"$f":"'Endkampf Mannschaften '!K63","v":49}]
["7.",{"$f":"'Endkampf Mannschaften '!A15","v":"Aulbach Jasmin"},{"$f":"'Endkampf Mannschaften '!B15","v":"Schützengau Main-Spessart"},{"$f":"'Endkampf Mannschaften '!D15","v":93},{"$f":"'Endkampf Mannschaften '!E15","v":96},{"$f":"'Endkampf Mannschaften '!F15","v":94},{"$f":"'Endkampf Mannschaften '!G15","v":92},{"$f":"'Endkampf Mannschaften '!H15","v":375},{"$f":"'Endkampf Mannschaften '!I15","v":25},{"$f":"'Endkampf Mannschaften '!J15","v":29.1},{"$f":"'Endkampf Mannschaften '!K15","v":54.1}]
["8.",{"$f":"'Endkampf Mannschaften '!A23","v":"Haas Steffi"},{"$f":"'Endkampf Mannschaften '!B23","v":"Schützengau Maintal"},{"$f":"'Endkampf Mannschaften '!D23","v":97},{"$f":"'Endkampf Mannschaften '!E23","v":93},{"$f":"'Endkampf Mannschaften '!F23","v":94},{"$f":"'Endkampf Mannschaften '!G23","v":91},{"$f":"'Endkampf Mannschaften '!H23","v":375},{"$f":"'Endkampf Mannschaften '!I23","v":25},{"$f":"'Endkampf Mannschaften '!J23","v":29.2},{"$f":"'Endkampf Mannschaften '!K23","v":54.2}]
["9.",{"$f":"'Endkampf Mannschaften '!A72","v":"Martin Violetta"},{"$f":"'Endkampf Mannschaften '!B72","v":"Schützengau Würzburg"},{"$f":"'Endkampf Mannschaften '!D72","v":97},{"$f":"'Endkampf Mannschaften '!E72","v":95},{"$f":"'Endkampf Mannschaften '!F72","v":97},{"$f":"'Endkampf Mannschaften '!G72","v":97},{"$f":"'Endkampf Mannschaften '!H72","v":386},{"$f":"'Endkampf Mannschaften '!I72","v":14},{"$f":"'Endkampf Mannschaften '!J72","v":30.8},{"$f":"'Endkampf Mannschaften '!K72","v":44.8}]
["10.",{"$f":"'Endkampf Mannschaften '!A55","v":"Schlembach Maria"},{"$f":"'Endkampf Mannschaften '!B55","v":"Schützengau Rhön-Saale"},{"$f":"'Endkampf Mannschaften '!D55","v":92},{"$f":"'Endkampf Mannschaften '!E55","v":92},{"$f":"'Endkampf Mannschaften '!F55","v":86},{"$f":"'Endkampf Mannschaften '!G55","v":91},{"$f":"'Endkampf Mannschaften '!H55","v":371},{"$f":"'Endkampf Mannschaften '!I55","v":29},{"$f":"'Endkampf Mannschaften '!J55","v":44},{"$f":"'Endkampf Mannschaften '!K55","v":73}]
["11.",{"$f":"'Endkampf Mannschaften '!A5","v":"Krämer Bianca"},{"$f":"'Endkampf Mannschaften '!B5","v":"Schützengau Kitzingen"},{"$f":"'Endkampf Mannschaften '!D5","v":94},{"$f":"'Endkampf Mannschaften '!E5","v":88},{"$f":"'Endkampf Mannschaften '!F5","v":89},{"$f":"'Endkampf Mannschaften '!G5","v":87},{"$f":"'Endkampf Mannschaften '!H5","v":358},{"$f":"'Endkampf Mannschaften '!I5","v":42},{"$f":"'Endkampf Mannschaften '!J5","v":55.9},{"$f":"'Endkampf Mannschaften '!K5","v":97.9}]
["12.",{"$f":"'Endkampf Mannschaften '!A14","v":"Bürki Anja"},{"$f":"'Endkampf Mannschaften '!B14","v":"Schützengau Main-Spessart"},{"$f":"'Endkampf Mannschaften '!D14","v":96},{"$f":"'Endkampf Mannschaften '!E14","v":94},{"$f":"'Endkampf Mannschaften '!F14","v":97},{"$f":"'Endkampf Mannschaften '!G14","v":94},{"$f":"'Endkampf Mannschaften '!H14","v":381},{"$f":"'Endkampf Mannschaften '!I14","v":19},{"$f":"'Endkampf Mannschaften '!J14","v":56.5},{"$f":"'Endkampf Mannschaften '!K14","v":75.5}]
["13.",{"$f":"'Endkampf Mannschaften '!A45","v":"Stroh Linda"},{"$f":"'Endkampf Mannschaften '!B45","v":"Schützengau Rhön-Grabfeld"},{"$f":"'Endkampf Mannschaften '!D45","v":90},{"$f":"'Endkampf Mannschaften '!E45","v":90},{"$f":"'Endkampf Mannschaften '!F45","v":95},{"$f":"'Endkampf Mannschaften '!G45","v":91},{"$f":"'Endkampf Mannschaften '!H45","v":366},{"$f":"'Endkampf Mannschaften '!I45","v":34},{"$f":"'Endkampf Mannschaften '!J45","v":58.6},{"$f":"'Endkampf Mannschaften '!K45","v":92.6}]
["14.",{"$f":"'Endkampf Mannschaften '!A25","v":"Reuter Nadja"},{"$f":"'Endkampf Mannschaften '!B25","v":"Schützengau Maintal"},{"$f":"'Endkampf Mannschaften '!D25","v":95},{"$f":"'Endkampf Mannschaften '!E25","v":97},{"$f":"'Endkampf Mannschaften '!F25","v":96},{"$f":"'Endkampf Mannschaften '!G25","v":96},{"$f":"'Endkampf Mannschaften '!H25","v":384},{"$f":"'Endkampf Mannschaften '!I25","v":16},{"$f":"'Endkampf Mannschaften '!J25","v":63},{"$f":"'Endkampf Mannschaften '!K25","v":79}]
["15.",{"$f":"'Endkampf Mannschaften '!A6","v":"Kohr Anette"},{"$f":"'Endkampf Mannschaften '!B6","v":"Schützengau Kitzingen"},{"$f":"'Endkampf Mannschaften '!D6","v":83},{"$f":"'Endkampf Mannschaften '!E6","v":89},{"$f":"'Endkampf Mannschaften '!F6","v":87},{"$f":"'Endkampf Mannschaften '!G6","v":82},{"$f":"'Endkampf Mannschaften '!H6","v":341},{"$f":"'Endkampf Mannschaften '!I6","v":59},{"$f":"'Endkampf Mannschaften '!J6","v":63.1},{"$f":"'Endkampf Mannschaften '!K6","v":122.1}]
["16.",{"$f":"'Endkampf Mannschaften '!A46","v":"Schmitt Heidi"},{"$f":"'Endkampf Mannschaften '!B46","v":"Schützengau Rhön-Grabfeld"},{"$f":"'Endkampf Mannschaften '!D46","v":92},{"$f":"'Endkampf Mannschaften '!E46","v":91},{"$f":"'Endkampf Mannschaften '!F46","v":86},{"$f":"'Endkampf Mannschaften '!G46","v":85},{"$f":"'Endkampf Mannschaften '!H46","v":354},{"$f":"'Endkampf Mannschaften '!I46","v":46},{"$f":"'Endkampf Mannschaften '!J46","v":67.2},{"$f":"'Endkampf Mannschaften '!K46","v":113.2}]
["17.",{"$f":"'Endkampf Mannschaften '!A73","v":"Ebert Monika"},{"$f":"'Endkampf Mannschaften '!B73","v":"Schützengau Würzburg"},{"$f":"'Endkampf Mannschaften '!D73","v":87},{"$f":"'Endkampf Mannschaften '!E73","v":88},{"$f":"'Endkampf Mannschaften '!F73","v":83},{"$f":"'Endkampf Mannschaften '!G73","v":90},{"$f":"'Endkampf Mannschaften '!H73","v":348},{"$f":"'Endkampf Mannschaften '!I73","v":52},{"$f":"'Endkampf Mannschaften '!J73","v":70},{"$f":"'Endkampf Mannschaften '!K73","v":122}]
["18.",{"$f":"'Endkampf Mannschaften '!A71","v":"Peter Anna-Lena"},{"$f":"'Endkampf Mannschaften '!B71","v":"Schützengau Würzburg"},{"$f":"'Endkampf Mannschaften '!D71","v":89},{"$f":"'Endkampf Mannschaften '!E71","v":85},{"$f":"'Endkampf Mannschaften '!F71","v":87},{"$f":"'Endkampf Mannschaften '!G71","v":85},{"$f":"'Endkampf Mannschaften '!H71","v":346},{"$f":"'Endkampf Mannschaften '!I71","v":54},{"$f":"'Endkampf Mannschaften '!J71","v":84.4},{"$f":"'Endkampf Mannschaften '!K71","v":138.4}]
["19.",{"$f":"'Endkampf Mannschaften '!A44","v":"Reder Luisa"},{"$f":"'Endkampf Mannschaften '!B44","v":"Schützengau Rhön-Grabfeld"},{"$f":"'Endkampf Mannschaften '!D44","v":87},{"$f":"'Endkampf Mannschaften '!E44","v":94},{"$f":"'Endkampf Mannschaften '!F44","v":80},{"$f":"'Endkampf Mannschaften '!G44","v":84},{"$f":"'Endkampf Mannschaften '!H44","v":345},{"$f":"'Endkampf Mannschaften '!I44","v":55},{"$f":"'Endkampf Mannschaften '!J44","v":98.6},{"$f":"'Endkampf Mannschaften '!K44","v":153.6}]
["20.",{"$f":"'Endkampf Mannschaften '!A54","v":"Röder Sonja"},{"$f":"'Endkampf Mannschaften '!B54","v":"Schützengau Rhön-Saale"},{"$f":"'Endkampf Mannschaften '!D54","v":91},{"$f":"'Endkampf Mannschaften '!E54","v":91},{"$f":"'Endkampf Mannschaften '!F54","v":93},{"$f":"'Endkampf Mannschaften '!G54","v":83},{"$f":"'Endkampf Mannschaften '!H54","v":358},{"$f":"'Endkampf Mannschaften '!I54","v":42},{"$f":"'Endkampf Mannschaften '!J54","v":99.7},{"$f":"'Endkampf Mannschaften '!K54","v":141.69999999999999}]
["21.",{"$f":"'Endkampf Mannschaften '!A64","v":"Jasmin Schinzel"},{"$f":"'Endkampf Mannschaften '!B64","v":"Schützengau Schweinfurt"},{"$f":"'Endkampf Mannschaften '!D64","v":89},{"$f":"'Endkampf Mannschaften '!E64","v":93},{"$f":"'Endkampf Mannschaften '!F64","v":89},{"$f":"'Endkampf Mannschaften '!G64","v":91},{"$f":"'Endkampf Mannschaften '!H64","v":362},{"$f":"'Endkampf Mannschaften '!I64","v":38},{"$f":"'Endkampf Mannschaften '!J64","v":104},{"$f":"'Endkampf Mannschaften '!K64","v":142}]
["22.",{"$f":"'Endkampf Mannschaften '!A56","v":"Voll Renate"},{"$f":"'Endkampf Mannschaften '!B56","v":"Schützengau Rhön-Saale"},{"$f":"'Endkampf Mannschaften '!D56","v":77},{"$f":"'Endkampf Mannschaften '!E56","v":86},{"$f":"'Endkampf Mannschaften '!F56","v":81},{"$f":"'Endkampf Mannschaften '!G56","v":82},{"$f":"'Endkampf Mannschaften '!H56","v":336},{"$f":"'Endkampf Mannschaften '!I56","v":64},{"$f":"'Endkampf Mannschaften '!J56","v":126.6},{"$f":"'Endkampf Mannschaften '!K56","v":190.6}]

{"sheet":"Punkteverhältnis","index":4,"n_rows":25,"n_cols":11,"rows_kept":25,"cut":false,"hidden":false,"merged":[[0,0,0,10]]}
["Einzelergebnisse Endkampf Bezirksdamenschießen 2018"]
["Bestes Punkteverhältnis (Freistehend)"]
["Platz","Name","Gau","1. Serie","2. Serie","3. Serie","4. Serie","Ergebnis","Differenz","Tiefschuss","Punkte"]
["1.",{"$f":"'Endkampf Mannschaften '!A16","v":"Wagner Marion"},{"$f":"'Endkampf Mannschaften '!B16","v":"Schützengau Main-Spessart"},{"$f":"'Endkampf Mannschaften '!D16","v":96},{"$f":"'Endkampf Mannschaften '!E16","v":99},{"$f":"'Endkampf Mannschaften '!F16","v":96},{"$f":"'Endkampf Mannschaften '!G16","v":98},{"$f":"'Endkampf Mannschaften '!H16","v":389},{"$f":"'Endkampf Mannschaften '!I16","v":11},{"$f":"'Endkampf Mannschaften '!J16","v":13},{"$f":"'Endkampf Mannschaften '!K16","v":24}]
["2.",{"$f":"'Endkampf Mannschaften '!A7","v":"Schäffner Natalia"},{"$f":"'Endkampf Mannschaften '!B7","v":"Schützengau Kitzingen"},{"$f":"'Endkampf Mannschaften '!D7","v":91},{"$f":"'Endkampf Mannschaften '!E7","v":94},{"$f":"'Endkampf Mannschaften '!F7","v":94},{"$f":"'Endkampf Mannschaften '!G7","v":97},{"$f":"'Endkampf Mannschaften '!H7","v":376},{"$f":"'Endkampf Mannschaften '!I7","v":24},{"$f":"'Endkampf Mannschaften '!J7","v":6.3},{"$f":"'Endkampf Mannschaften '!K7","v":30.3}]
["3.",{"$f":"'Endkampf Mannschaften '!A72","v":"Martin Violetta"},{"$f":"'Endkampf Mannschaften '!B72","v":"Schützengau Würzburg"},{"$f":"'Endkampf Mannschaften '!D72","v":97},{"$f":"'Endkampf Mannschaften '!E72","v":95},{"$f":"'Endkampf Mannschaften '!F72","v":97},{"$f":"'Endkampf Mannschaften '!G72","v":97},{"$f":"'Endkampf Mannschaften '!H72","v":386},{"$f":"'Endkampf Mannschaften '!I72","v":14},{"$f":"'Endkampf Mannschaften '!J72","v":30.8},{"$f":"'Endkampf Mannschaften '!K72","v":44.8}]
["4.",{"$f":"'Endkampf Mannschaften '!A63","v":"Rinder Sandra"},{"$f":"'Endkampf Mannschaften '!B63","v":"Schützengau Schweinfurt"},{"$f":"'Endkampf Mannschaften '!D63","v":93},{"$f":"'Endkampf Mannschaften '!E63","v":96},{"$f":"'Endkampf Mannschaften '!F63","v":97},{"$f":"'Endkampf Mannschaften '!G63","v":94},{"$f":"'Endkampf Mannschaften '!H63","v":380},{"$f":"'Endkampf Mannschaften '!I63","v":20},{"$f":"'Endkampf Mannschaften '!J63","v":29},{"$f":"'Endkampf Mannschaften '!K63","v":49}]
["5.",{"$f":"'Endkampf Mannschaften '!A24","v":"Becker Michaela"},{"$f":"'Endkampf Mannschaften '!B24","v":"Schützengau Maintal"},{"$f":"'Endkampf Mannschaften '!D24","v":91},{"$f":"'Endkampf Mannschaften '!E24","v":88},{"$f":"'Endkampf Mannschaften '!F24","v":91},{"$f":"'Endkampf Mannschaften '!G24","v":91},{"$f":"'Endkampf Mannschaften '!H24","v":371},{"$f":"'Endkampf Mannschaften '!I24","v":29},{"$f":"'Endkampf Mannschaften '!J24","v":23.6},{"$f":"'Endkampf Mannschaften '!K24","v":52.6}]
["6.",{"$f":"'Endkampf Mannschaften '!A15","v":"Aulbach Jasmin"},{"$f":"'Endkampf Mannschaften '!B15","v":"Schützengau Main-Spessart"},{"$f":"'Endkampf Mannschaften '!D15","v":93},{"$f":"'Endkampf Mannschaften '!E15","v":96},{"$f":"'Endkampf Mannschaften '!F15","v":94},{"$f":"'Endkampf Mannschaften '!G15","v":92},{"$f":"'Endkampf Mannschaften '!H15","v":375},{"$f":"'Endkampf Mannschaften '!I15","v":25},{"$f":"'Endkampf Mannschaften '!J15","v":29.1},{"$f":"'Endkampf Mannschaften '!K15","v":54.1}]
["7.",{"$f":"'Endkampf Mannschaften '!A23","v":"Haas Steffi"},{"$f":"'Endkampf Mannschaften '!B23","v":"Schützengau Maintal"},{"$f":"'Endkampf Mannschaften '!D23","v":97},{"$f":"'Endkampf Mannschaften '!E23","v":93},{"$f":"'Endkampf Mannschaften '!F23","v":94},{"$f":"'Endkampf Mannschaften '!G23","v":91},{"$f":"'Endkampf Mannschaften '!H23","v":375},{"$f":"'Endkampf Mannschaften '!I23","v":25},{"$f":"'Endkampf Mannschaften '!J23","v":29.2},{"$f":"'Endkampf Mannschaften '!K23","v":54.2}]
["8.",{"$f":"'Endkampf Mannschaften '!A62","v":"Baumeister Ilse"},{"$f":"'Endkampf Mannschaften '!B62","v":"Schützengau Schweinfurt"},{"$f":"'Endkampf Mannschaften '!D62","v":93},{"$f":"'Endkampf Mannschaften '!E62","v":87},{"$f":"'Endkampf Mannschaften '!F62","v":88},{"$f":"'Endkampf Mannschaften '!G62","v":88},{"$f":"'Endkampf Mannschaften '!H62","v":356},{"$f":"'Endkampf Mannschaften '!I62","v":44},{"$f":"'Endkampf Mannschaften '!J62","v":23.6},{"$f":"'Endkampf Mannschaften '!K62","v":67.599999999999994}]
["9.",{"$f":"'Endkampf Mannschaften '!A55","v":"Schlembach Maria"},{"$f":"'Endkampf Mannschaften '!B55","v":"Schützengau Rhön-Saale"},{"$f":"'Endkampf Mannschaften '!D55","v":92},{"$f":"'Endkampf Mannschaften '!E55","v":92},{"$f":"'Endkampf Mannschaften '!F55","v":86},{"$f":"'Endkampf Mannschaften '!G55","v":91},{"$f":"'Endkampf Mannschaften '!H55","v":371},{"$f":"'Endkampf Mannschaften '!I55","v":29},{"$f":"'Endkampf Mannschaften '!J55","v":44},{"$f":"'Endkampf Mannschaften '!K55","v":73}]
["10.",{"$f":"'Endkampf Mannschaften '!A14","v":"Bürki Anja"},{"$f":"'Endkampf Mannschaften '!B14","v":"Schützengau Main-Spessart"},{"$f":"'Endkampf Mannschaften '!D14","v":96},{"$f":"'Endkampf Mannschaften '!E14","v":94},{"$f":"'Endkampf Mannschaften '!F14","v":97},{"$f":"'Endkampf Mannschaften '!G14","v":94},{"$f":"'Endkampf Mannschaften '!H14","v":381},{"$f":"'Endkampf Mannschaften '!I14","v":19},{"$f":"'Endkampf Mannschaften '!J14","v":56.5},{"$f":"'Endkampf Mannschaften '!K14","v":75.5}]
["11.",{"$f":"'Endkampf Mannschaften '!A25","v":"Reuter Nadja"},{"$f":"'Endkampf Mannschaften '!B25","v":"Schützengau Maintal"},{"$f":"'Endkampf Mannschaften '!D25","v":95},{"$f":"'Endkampf Mannschaften '!E25","v":97},{"$f":"'Endkampf Mannschaften '!F25","v":96},{"$f":"'Endkampf Mannschaften '!G25","v":96},{"$f":"'Endkampf Mannschaften '!H25","v":384},{"$f":"'Endkampf Mannschaften '!I25","v":16},{"$f":"'Endkampf Mannschaften '!J25","v":63},{"$f":"'Endkampf Mannschaften '!K25","v":79}]
["12.",{"$f":"'Endkampf Mannschaften '!A53","v":"Beck Sonja"},{"$f":"'Endkampf Mannschaften '!B53","v":"Schützengau Rhön-Saale"},{"$f":"'Endkampf Mannschaften '!D53","v":87},{"$f":"'Endkampf Mannschaften '!E53","v":92},{"$f":"'Endkampf Mannschaften '!F53","v":83},{"$f":"'Endkampf Mannschaften '!G53","v":84},{"$f":"'Endkampf Mannschaften '!H53","v":346},{"$f":"'Endkampf Mannschaften '!I53","v":54},{"$f":"'Endkampf Mannschaften '!J53","v":27.8},{"$f":"'Endkampf Mannschaften '!K53","v":81.8}]
["13.",{"$f":"'Endkampf Mannschaften '!A45","v":"Stroh Linda"},{"$f":"'Endkampf Mannschaften '!B45","v":"Schützengau Rhön-Grabfeld"},{"$f":"'Endkampf Mannschaften '!D45","v":90},{"$f":"'Endkampf Mannschaften '!E45","v":90},{"$f":"'Endkampf Mannschaften '!F45","v":95},{"$f":"'Endkampf Mannschaften '!G45","v":91},{"$f":"'Endkampf Mannschaften '!H45","v":366},{"$f":"'Endkampf Mannschaften '!I45","v":34},{"$f":"'Endkampf Mannschaften '!J45","v":58.6},{"$f":"'Endkampf Mannschaften '!K45","v":92.6}]
["14.",{"$f":"'Endkampf Mannschaften '!A5","v":"Krämer Bianca"},{"$f":"'Endkampf Mannschaften '!B5","v":"Schützengau Kitzingen"},{"$f":"'Endkampf Mannschaften '!D5","v":94},{"$f":"'Endkampf Mannschaften '!E5","v":88},{"$f":"'Endkampf Mannschaften '!F5","v":89},{"$f":"'Endkampf Mannschaften '!G5","v":87},{"$f":"'Endkampf Mannschaften '!H5","v":358},{"$f":"'Endkampf Mannschaften '!I5","v":42},{"$f":"'Endkampf Mannschaften '!J5","v":55.9},{"$f":"'Endkampf Mannschaften '!K5","v":97.9}]
["15.",{"$f":"'Endkampf Mannschaften '!A46","v":"Schmitt Heidi"},{"$f":"'Endkampf Mannschaften '!B46","v":"Schützengau Rhön-Grabfeld"},{"$f":"'Endkampf Mannschaften '!D46","v":92},{"$f":"'Endkampf Mannschaften '!E46","v":91},{"$f":"'Endkampf Mannschaften '!F46","v":86},{"$f":"'Endkampf Mannschaften '!G46","v":85},{"$f":"'Endkampf Mannschaften '!H46","v":354},{"$f":"'Endkampf Mannschaften '!I46","v":46},{"$f":"'Endkampf Mannschaften '!J46","v":67.2},{"$f":"'Endkampf Mannschaften '!K46","v":113.2}]
["16.",{"$f":"'Endkampf Mannschaften '!A73","v":"Ebert Monika"},{"$f":"'Endkampf Mannschaften '!B73","v":"Schützengau Würzburg"},{"$f":"'Endkampf Mannschaften '!D73","v":87},{"$f":"'Endkampf Mannschaften '!E73","v":88},{"$f":"'Endkampf Mannschaften '!F73","v":83},{"$f":"'Endkampf Mannschaften '!G73","v":90},{"$f":"'Endkampf Mannschaften '!H73","v":348},{"$f":"'Endkampf Mannschaften '!I73","v":52},{"$f":"'Endkampf Mannschaften '!J73","v":70},{"$f":"'Endkampf Mannschaften '!K73","v":122}]
["17.",{"$f":"'Endkampf Mannschaften '!A6","v":"Kohr Anette"},{"$f":"'Endkampf Mannschaften '!B6","v":"Schützengau Kitzingen"},{"$f":"'Endkampf Mannschaften '!D6","v":83},{"$f":"'Endkampf Mannschaften '!E6","v":89},{"$f":"'Endkampf Mannschaften '!F6","v":87},{"$f":"'Endkampf Mannschaften '!G6","v":82},{"$f":"'Endkampf Mannschaften '!H6","v":341},{"$f":"'Endkampf Mannschaften '!I6","v":59},{"$f":"'Endkampf Mannschaften '!J6","v":63.1},{"$f":"'Endkampf Mannschaften '!K6","v":122.1}]
["18.",{"$f":"'Endkampf Mannschaften '!A71","v":"Peter Anna-Lena"},{"$f":"'Endkampf Mannschaften '!B71","v":"Schützengau Würzburg"},{"$f":"'Endkampf Mannschaften '!D71","v":89},{"$f":"'Endkampf Mannschaften '!E71","v":85},{"$f":"'Endkampf Mannschaften '!F71","v":87},{"$f":"'Endkampf Mannschaften '!G71","v":85},{"$f":"'Endkampf Mannschaften '!H71","v":346},{"$f":"'Endkampf Mannschaften '!I71","v":54},{"$f":"'Endkampf Mannschaften '!J71","v":84.4},{"$f":"'Endkampf Mannschaften '!K71","v":138.4}]
["19.",{"$f":"'Endkampf Mannschaften '!A54","v":"Röder Sonja"},{"$f":"'Endkampf Mannschaften '!B54","v":"Schützengau Rhön-Saale"},{"$f":"'Endkampf Mannschaften '!D54","v":91},{"$f":"'Endkampf Mannschaften '!E54","v":91},{"$f":"'Endkampf Mannschaften '!F54","v":93},{"$f":"'Endkampf Mannschaften '!G54","v":83},{"$f":"'Endkampf Mannschaften '!H54","v":358},{"$f":"'Endkampf Mannschaften '!I54","v":42},{"$f":"'Endkampf Mannschaften '!J54","v":99.7},{"$f":"'Endkampf Mannschaften '!K54","v":141.69999999999999}]
["20.",{"$f":"'Endkampf Mannschaften '!A64","v":"Jasmin Schinzel"},{"$f":"'Endkampf Mannschaften '!B64","v":"Schützengau Schweinfurt"},{"$f":"'Endkampf Mannschaften '!D64","v":89},{"$f":"'Endkampf Mannschaften '!E64","v":93},{"$f":"'Endkampf Mannschaften '!F64","v":89},{"$f":"'Endkampf Mannschaften '!G64","v":91},{"$f":"'Endkampf Mannschaften '!H64","v":362},{"$f":"'Endkampf Mannschaften '!I64","v":38},{"$f":"'Endkampf Mannschaften '!J64","v":104},{"$f":"'Endkampf Mannschaften '!K64","v":142}]
["21.",{"$f":"'Endkampf Mannschaften '!A44","v":"Reder Luisa"},{"$f":"'Endkampf Mannschaften '!B44","v":"Schützengau Rhön-Grabfeld"},{"$f":"'Endkampf Mannschaften '!D44","v":87},{"$f":"'Endkampf Mannschaften '!E44","v":94},{"$f":"'Endkampf Mannschaften '!F44","v":80},{"$f":"'Endkampf Mannschaften '!G44","v":84},{"$f":"'Endkampf Mannschaften '!H44","v":345},{"$f":"'Endkampf Mannschaften '!I44","v":55},{"$f":"'Endkampf Mannschaften '!J44","v":98.6},{"$f":"'Endkampf Mannschaften '!K44","v":153.6}]
["22.",{"$f":"'Endkampf Mannschaften '!A56","v":"Voll Renate"},{"$f":"'Endkampf Mannschaften '!B56","v":"Schützengau Rhön-Saale"},{"$f":"'Endkampf Mannschaften '!D56","v":77},{"$f":"'Endkampf Mannschaften '!E56","v":86},{"$f":"'Endkampf Mannschaften '!F56","v":81},{"$f":"'Endkampf Mannschaften '!G56","v":82},{"$f":"'Endkampf Mannschaften '!H56","v":336},{"$f":"'Endkampf Mannschaften '!I56","v":64},{"$f":"'Endkampf Mannschaften '!J56","v":126.6},{"$f":"'Endkampf Mannschaften '!K56","v":190.6}]

{"sheet":"Urkunden einzel","index":5,"n_rows":33,"n_cols":11,"rows_kept":33,"cut":false,"hidden":false,"merged":[]}
["Platz","Name","Gau","1. Serie","2. Serie","3. Serie","4. Serie","Ergebnis","Differenz","Tiefschuss","Punkte"]
[{"$f":"Punkteverhältnis!#REF!","v":{"$error":"#REF!"}},{"$f":"Punkteverhältnis!#REF!","v":{"$error":"#REF!"}},{"$f":"Punkteverhältnis!#REF!","v":{"$error":"#REF!"}},{"$f":"Punkteverhältnis!#REF!","v":{"$error":"#REF!"}},{"$f":"Punkteverhältnis!#REF!","v":{"$error":"#REF!"}},{"$f":"Punkteverhältnis!#REF!","v":{"$error":"#REF!"}},{"$f":"Punkteverhältnis!#REF!","v":{"$error":"#REF!"}},{"$f":"Punkteverhältnis!#REF!","v":{"$error":"#REF!"}},{"$f":"Punkteverhältnis!#REF!","v":{"$error":"#REF!"}},{"$f":"Punkteverhältnis!#REF!","v":{"$error":"#REF!"}},{"$f":"Punkteverhältnis!#REF!","v":{"$error":"#REF!"}}]
[{"$f":"Punkteverhältnis!#REF!","v":{"$error":"#REF!"}},{"$f":"Punkteverhältnis!#REF!","v":{"$error":"#REF!"}},{"$f":"Punkteverhältnis!#REF!","v":{"$error":"#REF!"}},{"$f":"Punkteverhältnis!#REF!","v":{"$error":"#REF!"}},{"$f":"Punkteverhältnis!#REF!","v":{"$error":"#REF!"}},{"$f":"Punkteverhältnis!#REF!","v":{"$error":"#REF!"}},{"$f":"Punkteverhältnis!#REF!","v":{"$error":"#REF!"}},{"$f":"Punkteverhältnis!#REF!","v":{"$error":"#REF!"}},{"$f":"Punkteverhältnis!#REF!","v":{"$error":"#REF!"}},{"$f":"Punkteverhältnis!#REF!","v":{"$error":"#REF!"}},{"$f":"Punkteverhältnis!#REF!","v":{"$error":"#REF!"}}]
[{"$f":"Punkteverhältnis!A4","v":"1."},{"$f":"Punkteverhältnis!B4","v":"Wagner Marion"},{"$f":"Punkteverhältnis!C4","v":"Schützengau Main-Spessart"},{"$f":"Punkteverhältnis!D4","v":96},{"$f":"Punkteverhältnis!E4","v":99},{"$f":"Punkteverhältnis!F4","v":96},{"$f":"Punkteverhältnis!G4","v":98},{"$f":"Punkteverhältnis!H4","v":389},{"$f":"Punkteverhältnis!I4","v":11},{"$f":"Punkteverhältnis!J4","v":13},{"$f":"Punkteverhältnis!K4","v":24}]
[{"$f":"Punkteverhältnis!A5","v":"2."},{"$f":"Punkteverhältnis!B5","v":"Schäffner Natalia"},{"$f":"Punkteverhältnis!C5","v":"Schützengau Kitzingen"},{"$f":"Punkteverhältnis!D5","v":91},{"$f":"Punkteverhältnis!E5","v":94},{"$f":"Punkteverhältnis!F5","v":94},{"$f":"Punkteverhältnis!G5","v":97},{"$f":"Punkteverhältnis!H5","v":376},{"$f":"Punkteverhältnis!I5","v":24},{"$f":"Punkteverhältnis!J5","v":6.3},{"$f":"Punkteverhältnis!K5","v":30.3}]
[{"$f":"Punkteverhältnis!A6","v":"3."},{"$f":"Punkteverhältnis!B6","v":"Martin Violetta"},{"$f":"Punkteverhältnis!C6","v":"Schützengau Würzburg"},{"$f":"Punkteverhältnis!D6","v":97},{"$f":"Punkteverhältnis!E6","v":95},{"$f":"Punkteverhältnis!F6","v":97},{"$f":"Punkteverhältnis!G6","v":97},{"$f":"Punkteverhältnis!H6","v":386},{"$f":"Punkteverhältnis!I6","v":14},{"$f":"Punkteverhältnis!J6","v":30.8},{"$f":"Punkteverhältnis!K6","v":44.8}]
[{"$f":"Punkteverhältnis!#REF!","v":{"$error":"#REF!"}},{"$f":"Punkteverhältnis!#REF!","v":{"$error":"#REF!"}},{"$f":"Punkteverhältnis!#REF!","v":{"$error":"#REF!"}},{"$f":"Punkteverhältnis!#REF!","v":{"$error":"#REF!"}},{"$f":"Punkteverhältnis!#REF!","v":{"$error":"#REF!"}},{"$f":"Punkteverhältnis!#REF!","v":{"$error":"#REF!"}},{"$f":"Punkteverhältnis!#REF!","v":{"$error":"#REF!"}},{"$f":"Punkteverhältnis!#REF!","v":{"$error":"#REF!"}},{"$f":"Punkteverhältnis!#REF!","v":{"$error":"#REF!"}},{"$f":"Punkteverhältnis!#REF!","v":{"$error":"#REF!"}},{"$f":"Punkteverhältnis!#REF!","v":{"$error":"#REF!"}}]
[{"$f":"Punkteverhältnis!#REF!","v":{"$error":"#REF!"}},{"$f":"Punkteverhältnis!#REF!","v":{"$error":"#REF!"}},{"$f":"Punkteverhältnis!#REF!","v":{"$error":"#REF!"}},{"$f":"Punkteverhältnis!#REF!","v":{"$error":"#REF!"}},{"$f":"Punkteverhältnis!#REF!","v":{"$error":"#REF!"}},{"$f":"Punkteverhältnis!#REF!","v":{"$error":"#REF!"}},{"$f":"Punkteverhältnis!#REF!","v":{"$error":"#REF!"}},{"$f":"Punkteverhältnis!#REF!","v":{"$error":"#REF!"}},{"$f":"Punkteverhältnis!#REF!","v":{"$error":"#REF!"}},{"$f":"Punkteverhältnis!#REF!","v":{"$error":"#REF!"}},{"$f":"Punkteverhältnis!#REF!","v":{"$error":"#REF!"}}]
[{"$f":"Punkteverhältnis!#REF!","v":{"$error":"#REF!"}},{"$f":"Punkteverhältnis!#REF!","v":{"$error":"#REF!"}},{"$f":"Punkteverhältnis!#REF!","v":{"$error":"#REF!"}},{"$f":"Punkteverhältnis!#REF!","v":{"$error":"#REF!"}},{"$f":"Punkteverhältnis!#REF!","v":{"$error":"#REF!"}},{"$f":"Punkteverhältnis!#REF!","v":{"$error":"#REF!"}},{"$f":"Punkteverhältnis!#REF!","v":{"$error":"#REF!"}},{"$f":"Punkteverhältnis!#REF!","v":{"$error":"#REF!"}},{"$f":"Punkteverhältnis!#REF!","v":{"$error":"#REF!"}},{"$f":"Punkteverhältnis!#REF!","v":{"$error":"#REF!"}},{"$f":"Punkteverhältnis!#REF!","v":{"$error":"#REF!"}}]
[{"$f":"Punkteverhältnis!#REF!","v":{"$error":"#REF!"}},{"$f":"Punkteverhältnis!#REF!","v":{"$error":"#REF!"}},{"$f":"Punkteverhältnis!#REF!","v":{"$error":"#REF!"}},{"$f":"Punkteverhältnis!#REF!","v":{"$error":"#REF!"}},{"$f":"Punkteverhältnis!#REF!","v":{"$error":"#REF!"}},{"$f":"Punkteverhältnis!#REF!","v":{"$error":"#REF!"}},{"$f":"Punkteverhältnis!#REF!","v":{"$error":"#REF!"}},{"$f":"Punkteverhältnis!#REF!","v":{"$error":"#REF!"}},{"$f":"Punkteverhältnis!#REF!","v":{"$error":"#REF!"}},{"$f":"Punkteverhältnis!#REF!","v":{"$error":"#REF!"}},{"$f":"Punkteverhältnis!#REF!","v":{"$error":"#REF!"}}]
[{"$f":"Punkteverhältnis!#REF!","v":{"$error":"#REF!"}},{"$f":"Punkteverhältnis!#REF!","v":{"$error":"#REF!"}},{"$f":"Punkteverhältnis!#REF!","v":{"$error":"#REF!"}},{"$f":"Punkteverhältnis!#REF!","v":{"$error":"#REF!"}},{"$f":"Punkteverhältnis!#REF!","v":{"$error":"#REF!"}},{"$f":"Punkteverhältnis!#REF!","v":{"$error":"#REF!"}},{"$f":"Punkteverhältnis!#REF!","v":{"$error":"#REF!"}},{"$f":"Punkteverhältnis!#REF!","v":{"$error":"#REF!"}},{"$f":"Punkteverhältnis!#REF!","v":{"$error":"#REF!"}},{"$f":"Punkteverhältnis!#REF!","v":{"$error":"#REF!"}},{"$f":"Punkteverhältnis!#REF!","v":{"$error":"#REF!"}}]
[{"$f":"Punkteverhältnis!#REF!","v":{"$error":"#REF!"}},{"$f":"Punkteverhältnis!#REF!","v":{"$error":"#REF!"}},{"$f":"Punkteverhältnis!#REF!","v":{"$error":"#REF!"}},{"$f":"Punkteverhältnis!#REF!","v":{"$error":"#REF!"}},{"$f":"Punkteverhältnis!#REF!","v":{"$error":"#REF!"}},{"$f":"Punkteverhältnis!#REF!","v":{"$error":"#REF!"}},{"$f":"Punkteverhältnis!#REF!","v":{"$error":"#REF!"}},{"$f":"Punkteverhältnis!#REF!","v":{"$error":"#REF!"}},{"$f":"Punkteverhältnis!#REF!","v":{"$error":"#REF!"}},{"$f":"Punkteverhältnis!#REF!","v":{"$error":"#REF!"}},{"$f":"Punkteverhältnis!#REF!","v":{"$error":"#REF!"}}]
[{"$f":"Punkteverhältnis!A7","v":"4."},{"$f":"Punkteverhältnis!B7","v":"Rinder Sandra"},{"$f":"Punkteverhältnis!C7","v":"Schützengau Schweinfurt"},{"$f":"Punkteverhältnis!D7","v":93},{"$f":"Punkteverhältnis!E7","v":96},{"$f":"Punkteverhältnis!F7","v":97},{"$f":"Punkteverhältnis!G7","v":94},{"$f":"Punkteverhältnis!H7","v":380},{"$f":"Punkteverhältnis!I7","v":20},{"$f":"Punkteverhältnis!J7","v":29},{"$f":"Punkteverhältnis!K7","v":49}]
[{"$f":"Punkteverhältnis!#REF!","v":{"$error":"#REF!"}},{"$f":"Punkteverhältnis!#REF!","v":{"$error":"#REF!"}},{"$f":"Punkteverhältnis!#REF!","v":{"$error":"#REF!"}},{"$f":"Punkteverhältnis!#REF!","v":{"$error":"#REF!"}},{"$f":"Punkteverhältnis!#REF!","v":{"$error":"#REF!"}},{"$f":"Punkteverhältnis!#REF!","v":{"$error":"#REF!"}},{"$f":"Punkteverhältnis!#REF!","v":{"$error":"#REF!"}},{"$f":"Punkteverhältnis!#REF!","v":{"$error":"#REF!"}},{"$f":"Punkteverhältnis!#REF!","v":{"$error":"#REF!"}},{"$f":"Punkteverhältnis!#REF!","v":{"$error":"#REF!"}},{"$f":"Punkteverhältnis!#REF!","v":{"$error":"#REF!"}}]
[{"$f":"Punkteverhältnis!#REF!","v":{"$error":"#REF!"}},{"$f":"Punkteverhältnis!#REF!","v":{"$error":"#REF!"}},{"$f":"Punkteverhältnis!#REF!","v":{"$error":"#REF!"}},{"$f":"Punkteverhältnis!#REF!","v":{"$error":"#REF!"}},{"$f":"Punkteverhältnis!#REF!","v":{"$error":"#REF!"}},{"$f":"Punkteverhältnis!#REF!","v":{"$error":"#REF!"}},{"$f":"Punkteverhältnis!#REF!","v":{"$error":"#REF!"}},{"$f":"Punkteverhältnis!#REF!","v":{"$error":"#REF!"}},{"$f":"Punkteverhältnis!#REF!","v":{"$error":"#REF!"}},{"$f":"Punkteverhältnis!#REF!","v":{"$error":"#REF!"}},{"$f":"Punkteverhältnis!#REF!","v":{"$error":"#REF!"}}]
[{"$f":"Punkteverhältnis!A8","v":"5."},{"$f":"Punkteverhältnis!B8","v":"Becker Michaela"},{"$f":"Punkteverhältnis!C8","v":"Schützengau Maintal"},{"$f":"Punkteverhältnis!D8","v":91},{"$f":"Punkteverhältnis!E8","v":88},{"$f":"Punkteverhältnis!F8","v":91},{"$f":"Punkteverhältnis!G8","v":91},{"$f":"Punkteverhältnis!H8","v":371},{"$f":"Punkteverhältnis!I8","v":29},{"$f":"Punkteverhältnis!J8","v":23.6},{"$f":"Punkteverhältnis!K8","v":52.6}]
[{"$f":"Punkteverhältnis!A9","v":"6."},{"$f":"Punkteverhältnis!B9","v":"Aulbach Jasmin"},{"$f":"Punkteverhältnis!C9","v":"Schützengau Main-Spessart"},{"$f":"Punkteverhältnis!D9","v":93},{"$f":"Punkteverhältnis!E9","v":96},{"$f":"Punkteverhältnis!F9","v":94},{"$f":"Punkteverhältnis!G9","v":92},{"$f":"Punkteverhältnis!H9","v":375},{"$f":"Punkteverhältnis!I9","v":25},{"$f":"Punkteverhältnis!J9","v":29.1},{"$f":"Punkteverhältnis!K9","v":54.1}]
[{"$f":"Punkteverhältnis!A10","v":"7."},{"$f":"Punkteverhältnis!B10","v":"Haas Steffi"},{"$f":"Punkteverhältnis!C10","v":"Schützengau Maintal"},{"$f":"Punkteverhältnis!D10","v":97},{"$f":"Punkteverhältnis!E10","v":93},{"$f":"Punkteverhältnis!F10","v":94},{"$f":"Punkteverhältnis!G10","v":91},{"$f":"Punkteverhältnis!H10","v":375},{"$f":"Punkteverhältnis!I10","v":25},{"$f":"Punkteverhältnis!J10","v":29.2},{"$f":"Punkteverhältnis!K10","v":54.2}]
[{"$f":"Punkteverhältnis!A11","v":"8."},{"$f":"Punkteverhältnis!B11","v":"Baumeister Ilse"},{"$f":"Punkteverhältnis!C11","v":"Schützengau Schweinfurt"},{"$f":"Punkteverhältnis!D11","v":93},{"$f":"Punkteverhältnis!E11","v":87},{"$f":"Punkteverhältnis!F11","v":88},{"$f":"Punkteverhältnis!G11","v":88},{"$f":"Punkteverhältnis!H11","v":356},{"$f":"Punkteverhältnis!I11","v":44},{"$f":"Punkteverhältnis!J11","v":23.6},{"$f":"Punkteverhältnis!K11","v":67.599999999999994}]
[{"$f":"Punkteverhältnis!A12","v":"9."},{"$f":"Punkteverhältnis!B12","v":"Schlembach Maria"},{"$f":"Punkteverhältnis!C12","v":"Schützengau Rhön-Saale"},{"$f":"Punkteverhältnis!D12","v":92},{"$f":"Punkteverhältnis!E12","v":92},{"$f":"Punkteverhältnis!F12","v":86},{"$f":"Punkteverhältnis!G12","v":91},{"$f":"Punkteverhältnis!H12","v":371},{"$f":"Punkteverhältnis!I12","v":29},{"$f":"Punkteverhältnis!J12","v":44},{"$f":"Punkteverhältnis!K12","v":73}]
[{"$f":"Punkteverhältnis!A13","v":"10."},{"$f":"Punkteverhältnis!B13","v":"Bürki Anja"},{"$f":"Punkteverhältnis!C13","v":"Schützengau Main-Spessart"},{"$f":"Punkteverhältnis!D13","v":96},{"$f":"Punkteverhältnis!E13","v":94},{"$f":"Punkteverhältnis!F13","v":97},{"$f":"Punkteverhältnis!G13","v":94},{"$f":"Punkteverhältnis!H13","v":381},{"$f":"Punkteverhältnis!I13","v":19},{"$f":"Punkteverhältnis!J13","v":56.5},{"$f":"Punkteverhältnis!K13","v":75.5}]
[{"$f":"Punkteverhältnis!A14","v":"11."},{"$f":"Punkteverhältnis!B14","v":"Reuter Nadja"},{"$f":"Punkteverhältnis!C14","v":"Schützengau Maintal"},{"$f":"Punkteverhältnis!D14","v":95},{"$f":"Punkteverhältnis!E14","v":97},{"$f":"Punkteverhältnis!F14","v":96},{"$f":"Punkteverhältnis!G14","v":96},{"$f":"Punkteverhältnis!H14","v":384},{"$f":"Punkteverhältnis!I14","v":16},{"$f":"Punkteverhältnis!J14","v":63},{"$f":"Punkteverhältnis!K14","v":79}]
[{"$f":"Punkteverhältnis!A15","v":"12."},{"$f":"Punkteverhältnis!B15","v":"Beck Sonja"},{"$f":"Punkteverhältnis!C15","v":"Schützengau Rhön-Saale"},{"$f":"Punkteverhältnis!D15","v":87},{"$f":"Punkteverhältnis!E15","v":92},{"$f":"Punkteverhältnis!F15","v":83},{"$f":"Punkteverhältnis!G15","v":84},{"$f":"Punkteverhältnis!H15","v":346},{"$f":"Punkteverhältnis!I15","v":54},{"$f":"Punkteverhältnis!J15","v":27.8},{"$f":"Punkteverhältnis!K15","v":81.8}]
[{"$f":"Punkteverhältnis!A16","v":"13."},{"$f":"Punkteverhältnis!B16","v":"Stroh Linda"},{"$f":"Punkteverhältnis!C16","v":"Schützengau Rhön-Grabfeld"},{"$f":"Punkteverhältnis!D16","v":90},{"$f":"Punkteverhältnis!E16","v":90},{"$f":"Punkteverhältnis!F16","v":95},{"$f":"Punkteverhältnis!G16","v":91},{"$f":"Punkteverhältnis!H16","v":366},{"$f":"Punkteverhältnis!I16","v":34},{"$f":"Punkteverhältnis!J16","v":58.6},{"$f":"Punkteverhältnis!K16","v":92.6}]
[{"$f":"Punkteverhältnis!A17","v":"14."},{"$f":"Punkteverhältnis!B17","v":"Krämer Bianca"},{"$f":"Punkteverhältnis!C17","v":"Schützengau Kitzingen"},{"$f":"Punkteverhältnis!D17","v":94},{"$f":"Punkteverhältnis!E17","v":88},{"$f":"Punkteverhältnis!F17","v":89},{"$f":"Punkteverhältnis!G17","v":87},{"$f":"Punkteverhältnis!H17","v":358},{"$f":"Punkteverhältnis!I17","v":42},{"$f":"Punkteverhältnis!J17","v":55.9},{"$f":"Punkteverhältnis!K17","v":97.9}]
[{"$f":"Punkteverhältnis!A18","v":"15."},{"$f":"Punkteverhältnis!B18","v":"Schmitt Heidi"},{"$f":"Punkteverhältnis!C18","v":"Schützengau Rhön-Grabfeld"},{"$f":"Punkteverhältnis!D18","v":92},{"$f":"Punkteverhältnis!E18","v":91},{"$f":"Punkteverhältnis!F18","v":86},{"$f":"Punkteverhältnis!G18","v":85},{"$f":"Punkteverhältnis!H18","v":354},{"$f":"Punkteverhältnis!I18","v":46},{"$f":"Punkteverhältnis!J18","v":67.2},{"$f":"Punkteverhältnis!K18","v":113.2}]
[{"$f":"Punkteverhältnis!A19","v":"16."},{"$f":"Punkteverhältnis!B19","v":"Ebert Monika"},{"$f":"Punkteverhältnis!C19","v":"Schützengau Würzburg"},{"$f":"Punkteverhältnis!D19","v":87},{"$f":"Punkteverhältnis!E19","v":88},{"$f":"Punkteverhältnis!F19","v":83},{"$f":"Punkteverhältnis!G19","v":90},{"$f":"Punkteverhältnis!H19","v":348},{"$f":"Punkteverhältnis!I19","v":52},{"$f":"Punkteverhältnis!J19","v":70},{"$f":"Punkteverhältnis!K19","v":122}]
[{"$f":"Punkteverhältnis!A20","v":"17."},{"$f":"Punkteverhältnis!B20","v":"Kohr Anette"},{"$f":"Punkteverhältnis!C20","v":"Schützengau Kitzingen"},{"$f":"Punkteverhältnis!D20","v":83},{"$f":"Punkteverhältnis!E20","v":89},{"$f":"Punkteverhältnis!F20","v":87},{"$f":"Punkteverhältnis!G20","v":82},{"$f":"Punkteverhältnis!H20","v":341},{"$f":"Punkteverhältnis!I20","v":59},{"$f":"Punkteverhältnis!J20","v":63.1},{"$f":"Punkteverhältnis!K20","v":122.1}]
[{"$f":"Punkteverhältnis!A21","v":"18."},{"$f":"Punkteverhältnis!B21","v":"Peter Anna-Lena"},{"$f":"Punkteverhältnis!C21","v":"Schützengau Würzburg"},{"$f":"Punkteverhältnis!D21","v":89},{"$f":"Punkteverhältnis!E21","v":85},{"$f":"Punkteverhältnis!F21","v":87},{"$f":"Punkteverhältnis!G21","v":85},{"$f":"Punkteverhältnis!H21","v":346},{"$f":"Punkteverhältnis!I21","v":54},{"$f":"Punkteverhältnis!J21","v":84.4},{"$f":"Punkteverhältnis!K21","v":138.4}]
[{"$f":"Punkteverhältnis!A22","v":"19."},{"$f":"Punkteverhältnis!B22","v":"Röder Sonja"},{"$f":"Punkteverhältnis!C22","v":"Schützengau Rhön-Saale"},{"$f":"Punkteverhältnis!D22","v":91},{"$f":"Punkteverhältnis!E22","v":91},{"$f":"Punkteverhältnis!F22","v":93},{"$f":"Punkteverhältnis!G22","v":83},{"$f":"Punkteverhältnis!H22","v":358},{"$f":"Punkteverhältnis!I22","v":42},{"$f":"Punkteverhältnis!J22","v":99.7},{"$f":"Punkteverhältnis!K22","v":141.69999999999999}]
[{"$f":"Punkteverhältnis!A23","v":"20."},{"$f":"Punkteverhältnis!B23","v":"Jasmin Schinzel"},{"$f":"Punkteverhältnis!C23","v":"Schützengau Schweinfurt"},{"$f":"Punkteverhältnis!D23","v":89},{"$f":"Punkteverhältnis!E23","v":93},{"$f":"Punkteverhältnis!F23","v":89},{"$f":"Punkteverhältnis!G23","v":91},{"$f":"Punkteverhältnis!H23","v":362},{"$f":"Punkteverhältnis!I23","v":38},{"$f":"Punkteverhältnis!J23","v":104},{"$f":"Punkteverhältnis!K23","v":142}]
[{"$f":"Punkteverhältnis!A24","v":"21."},{"$f":"Punkteverhältnis!B24","v":"Reder Luisa"},{"$f":"Punkteverhältnis!C24","v":"Schützengau Rhön-Grabfeld"},{"$f":"Punkteverhältnis!D24","v":87},{"$f":"Punkteverhältnis!E24","v":94},{"$f":"Punkteverhältnis!F24","v":80},{"$f":"Punkteverhältnis!G24","v":84},{"$f":"Punkteverhältnis!H24","v":345},{"$f":"Punkteverhältnis!I24","v":55},{"$f":"Punkteverhältnis!J24","v":98.6},{"$f":"Punkteverhältnis!K24","v":153.6}]
[{"$f":"Punkteverhältnis!A25","v":"22."},{"$f":"Punkteverhältnis!B25","v":"Voll Renate"},{"$f":"Punkteverhältnis!C25","v":"Schützengau Rhön-Saale"},{"$f":"Punkteverhältnis!D25","v":77},{"$f":"Punkteverhältnis!E25","v":86},{"$f":"Punkteverhältnis!F25","v":81},{"$f":"Punkteverhältnis!G25","v":82},{"$f":"Punkteverhältnis!H25","v":336},{"$f":"Punkteverhältnis!I25","v":64},{"$f":"Punkteverhältnis!J25","v":126.6},{"$f":"Punkteverhältnis!K25","v":190.6}]